bitfinex/quotes_ETHUSD_20220218
["timestamp","ask_amount","ask_price","bid_price","bid_amount"]
[1645224812442,0.00020855,2779.2,2779.0,0.89982]
[1645224812673,0.00020855,2779.2,2779.1,3.8]
[1645224812875,0.00020855,2779.2,2779.1,5.29938]
[1645224813674,0.00020855,2779.2,2779.1,5.89938]
[1645224813875,0.00020855,2779.2,2779.1,6.89938]
[1645224814080,0.00020855,2779.2,2779.1,5.59938]
[1645224814473,0.00020855,2779.2,2779.1,5.29938]
[1645224815174,0.00020855,2779.2,2779.1,5.24938]
[1645224816921,0.00020855,2779.2,2779.1,5.54938]
[1645224817323,0.00020855,2779.2,2779.1,17.55938]
[1645224817525,0.00020855,2779.2,2779.1,19.60770042]
[1645224817925,0.00020855,2779.2,2779.1,19.90770042]
[1645224820969,0.00020855,2779.2,2779.1,22.99610042]
[1645224821373,0.00020855,2779.2,2779.1,23.14517931]
[1645224822669,0.00020855,2779.2,2779.1,22.99610042]
[1645224825529,0.00020855,2779.2,2779.1,19.54610042]
[1645224830272,0.00237944,2780.1,2779.6,0.89945]
[1645224830472,1.36943412,2780.3,2779.6,2.61893]
[1645224830671,0.00237944,2780.1,2779.6,2.61893]
[1645224831071,0.00237944,2780.1,2779.6,13.62893]
[1645224831519,0.00237944,2780.1,2779.7,0.899482]
[1645224831721,1.36943412,2780.3,2780.0,0.89949]
[1645224831922,0.00237994,2780.1,2780.0,0.89949]
[1645224832918,1.36943412,2780.3,2780.0,0.89949]
[1645224833123,0.00238,2780.2,2780.1,0.89951]
[1645224833529,1.81377255,2780.6,2780.1,0.89951]
[1645224833723,0.0150971,2780.8,2780.2,11.53]
[1645224833925,0.009518,2780.8,2780.2,13.32863]
[1645224834122,0.0055791,2780.8,2780.3,2.19927]
[1645224834321,0.1,2780.9,2780.4,0.52]
[1645224834725,0.1,2780.9,2780.4,0.82]
[1645224834923,0.1,2780.9,2780.5,0.89931]
[1645224835368,0.05,2780.9,2780.5,0.89931]
[1645224835667,0.001983,2780.8,2780.5,1.79863]
[1645224836271,0.001983,2780.8,2780.5,2.69794]
[1645224836567,0.05,2780.9,2780.5,2.69794]
[1645224836767,0.001983,2780.8,2780.5,2.69794]
[1645224837668,0.05,2780.9,2780.5,2.69794]
[1645224838067,0.00245228,2780.8,2780.5,2.69794]
[1645224838931,0.05,2780.9,2780.5,2.69794]
[1645224839220,0.00245228,2780.8,2780.5,2.69794]
[1645224840024,0.05,2780.9,2780.5,2.69794]
[1645224840423,0.00245228,2780.8,2780.5,2.69794]
[1645224840623,0.00245228,2780.8,2780.5,1.79862]
[1645224840823,0.00245228,2780.8,2780.5,0.89931]
[1645224841232,0.05,2780.9,2780.5,0.89931]
[1645224841723,0.00245228,2780.8,2780.5,0.89931]
[1645224842525,0.05,2780.9,2780.5,0.89931]
[1645224842772,0.00245228,2780.8,2780.5,0.89931]
[1645224843667,0.05,2780.9,2780.5,0.89931]
[1645224844068,0.00245228,2780.8,2780.5,0.89931]
[1645224844875,0.05,2780.9,2780.5,0.89931]
[1645224845270,0.00245228,2780.8,2780.5,0.89931]
[1645224846070,0.05,2780.9,2780.5,1.79866]
[1645224846522,0.00245228,2780.8,2780.5,0.89931]
[1645224847321,0.00245228,2780.8,2780.4,1.79864]
[1645224847322,5.05,2780.9,2780.1,3.72339]
[1645224847526,1.36789405,2780.8,2779.8,0.52157076]
[1645224847721,1.36544177,2780.7,2779.8,0.00157076]
[1645224847921,1.36789405,2780.8,2779.8,0.00157076]
[1645224848121,5.0,2780.7,2779.8,0.00157076]
[1645224848322,6.19972,2780.7,2779.8,0.00157076]
[1645224848522,6.19972,2780.7,2779.5,0.52]
[1645224848523,6.66544177,2780.7,2779.5,0.52]
[1645224848722,6.36544177,2780.7,2779.5,0.52]
[1645224848921,0.00245235,2780.4,2779.8,0.00157076]
[1645224849320,1.36789412,2780.4,2779.8,0.00157076]
[1645224849722,2.61134177,2780.7,2779.5,2.31923]
[1645224849921,2.61134177,2780.7,2779.5,0.52]
[1645224849922,1.2459,2780.7,2779.5,0.52]
[1645224850172,0.00240517,2780.3,2779.8,0.00141369]
[1645224850368,0.00240517,2780.3,2779.8,0.90098369]
[1645224850570,0.00240517,2780.3,2779.9,1.7988845]
[1645224850967,1.2459,2780.7,2779.8,2.69867]
[1645224851175,0.00240517,2780.3,2779.8,1.80053369]
[1645224851471,0.00240517,2780.3,2779.8,0.00141369]
[1645224851768,5.00240517,2780.3,2779.8,0.00141369]
[1645224851972,5.0,2779.9,2779.8,1.369e-05]
[1645224852169,5.0,2779.9,2778.4,0.06857602]
[1645224852375,5.0,2779.7,2778.5,1.5284546]
[1645224852569,5.0,2779.4,2778.2,3.0954]
[1645224852775,5.0,2779.6,2778.4,0.90005]
[1645224852972,2.7736,2779.7,2778.4,0.90005]
[1645224853171,2.7736,2779.7,2778.6,0.89998]
[1645224853372,3.0736,2779.7,2778.6,0.89998]
[1645224853772,4.43904177,2779.7,2778.6,0.89998]
[1645224854220,4.13904177,2779.7,2778.7,0.89997]
[1645224854820,2.7736,2779.7,2779.1,0.00132557]
[1645224855719,2.7736,2779.7,2778.6,0.90001]
[1645224855922,2.7736,2779.7,2779.3,0.00132547]
[1645224856218,4.13904177,2779.7,2779.3,0.00132547]
[1645224856620,2.7736,2779.7,2779.3,0.00132547]
[1645224857020,2.7736,2779.7,2778.7,0.89994]
[1645224857221,2.7736,2779.7,2779.4,0.00133329]
[1645224857419,5.0,2779.5,2779.4,0.00133329]
[1645224857667,4.13904177,2779.7,2779.4,0.00133329]
[1645224858071,2.7736,2779.7,2778.7,1.79985]
[1645224858471,2.7736,2779.7,2779.4,0.00133326]
[1645224858671,3.0736,2779.7,2779.4,0.00133326]
[1645224859371,3.0736,2779.7,2778.7,1.79985]
[1645224859570,3.0736,2779.7,2779.4,0.00133326]
[1645224860477,3.0736,2779.7,2778.8,0.89991]
[1645224860875,3.0736,2779.7,2779.4,0.00133225]
[1645224861712,2.7736,2779.7,2778.8,0.85124225]
[1645224861914,2.7736,2779.7,2779.4,0.00133225]
[1645224862312,3.0736,2779.7,2779.4,0.00133225]
[1645224862913,3.0736,2779.7,2778.7,0.8999056]
[1645224864117,3.0736,2779.7,2778.7,2.6996756]
[1645224864315,3.0736,2779.7,2778.7,0.8999056]
[1645224864517,3.0736,2779.7,2779.1,0.00132922]
[1645224864518,4.43904177,2779.7,2779.1,0.00132922]
[1645224865370,4.43904177,2779.7,2778.5,1.79988]
[1645224865673,4.43904177,2779.7,2779.3,0.00132912]
[1645224865869,3.0736,2779.7,2779.3,0.00132912]
[1645224866468,3.0736,2779.7,2778.5,1.79988]
[1645224866870,3.0736,2779.7,2779.3,0.00132912]
[1645224867870,3.0736,2779.7,2778.5,1.79988]
[1645224868069,3.0736,2779.7,2779.3,0.00132958]
[1645224869018,3.0736,2779.7,2778.5,1.79988]
[1645224869218,3.0736,2779.7,2779.3,0.00132958]
[1645224870219,3.0736,2779.7,2778.5,1.79988]
[1645224870418,3.0736,2779.7,2779.3,0.00132958]
[1645224871322,3.0736,2779.7,2778.5,2.69986]
[1645224871726,3.0736,2779.7,2779.3,0.00132951]
[1645224872521,3.0736,2779.7,2778.6,0.89998]
[1645224872976,3.0736,2779.7,2779.3,0.00132951]
[1645224873777,3.0736,2779.7,2778.6,4.39998]
[1645224873979,2.7736,2779.7,2779.3,0.00132951]
[1645224874981,2.7736,2779.7,2778.6,4.39998]
[1645224875178,2.7736,2779.7,2779.3,0.00132952]
[1645224876183,2.7736,2779.7,2779.0,0.8998]
[1645224876425,2.7736,2779.7,2779.3,0.00132952]
[1645224876623,1.1847,2779.8,2779.3,0.00132952]
[1645224877027,1.63625175,2779.9,2779.3,0.00132952]
[1645224877028,1.6272,2779.9,2779.3,0.00132952]
[1645224877423,1.1762,2780.2,2779.3,1.7994071]
[1645224877624,1.1762,2780.2,2779.4,3.5]
[1645224877823,0.00238177,2780.1,2779.4,3.5]
[1645224878625,1.1762,2780.2,2779.4,4.39964]
[1645224878831,0.00238187,2780.1,2779.4,4.39964]
[1645224879226,0.00238187,2780.1,2779.4,6.19889]
[1645224879427,0.00238187,2780.1,2779.6,0.89965]
[1645224879828,11.9945,2780.6,2779.6,0.89965]
[1645224880163,0.00238195,2780.1,2779.6,4.39965]
[1645224880363,0.00238195,2780.1,2779.6,0.89965]
[1645224880762,0.00238195,2780.1,2779.6,4.39965]
[1645224880969,11.9945,2780.6,2779.6,4.39965]
[1645224881470,0.00238195,2780.1,2779.6,4.39965]
[1645224882063,0.00238195,2780.1,2779.6,3.5]
[1645224882266,17.89423,2780.6,2779.4,3.5]
[1645224882468,0.00238195,2780.1,2779.3,0.90109952]
[1645224882668,5.00238195,2780.1,2779.3,0.00132952]
[1645224882867,0.00238195,2780.1,2779.3,0.00132952]
[1645224883466,2.0323576,2780.3,2778.9,4.69984]
[1645224883669,0.00238184,2780.1,2779.3,0.00132952]
[1645224884620,2.0323576,2780.3,2779.1,3.5]
[1645224884621,1.1325,2780.3,2779.1,3.5]
[1645224884920,0.00238184,2780.1,2779.3,0.00132952]
[1645224885622,0.00238184,2780.1,2779.4,0.8996679]
[1645224885821,0.0055791,2780.5,2779.5,3.5]
[1645224886020,0.0055791,2780.5,2779.5,3.49880769]
[1645224886223,0.00238184,2780.1,2779.5,3.49880769]
[1645224886421,0.00238184,2780.1,2779.6,0.89964]
[1645224886623,0.00238184,2780.1,2779.7,3.5]
[1645224887021,0.0055791,2780.5,2779.6,0.89964]
[1645224887221,0.00238198,2780.1,2779.6,0.89964]
[1645224887422,0.00238198,2780.1,2779.6,2.09927]
[1645224887672,0.00238198,2780.1,2779.6,0.3]
[1645224887873,0.00238198,2780.1,2779.5,3.8]
[1645224888276,0.0055791,2780.5,2779.5,3.8]
[1645224888475,0.00238191,2780.1,2779.5,3.8]
[1645224889277,0.00238191,2780.1,2779.6,0.89966]
[1645224889481,0.0055791,2780.5,2779.6,0.89966]
[1645224889676,0.00238191,2780.1,2779.6,0.89966]
[1645224889876,0.00238191,2780.1,2779.6,1.19966]
[1645224890377,0.00238191,2780.1,2779.6,2.09929]
[1645224890578,0.0055791,2780.5,2779.6,2.09929]
[1645224890778,0.00238195,2780.1,2779.6,2.09929]
[1645224890977,0.00238195,2780.1,2779.6,1.79929]
[1645224891720,0.0055791,2780.5,2779.6,1.79929]
[1645224892122,0.00238195,2780.1,2779.6,1.79929]
[1645224892321,0.00238195,2780.1,2779.6,2.9988945]
[1645224892522,0.00238195,2780.1,2779.7,0.89959]
[1645224892922,0.0055791,2780.5,2779.7,0.89959]
[1645224893322,0.00238198,2780.1,2779.8,0.8996]
[1645224893722,0.00238198,2780.1,2779.9,3.5]
[1645224894322,0.0055791,2780.5,2779.9,3.5]
[1645224894522,0.00238199,2780.1,2779.9,3.5]
[1645224894725,0.00238199,2780.1,2779.8,1.79914]
[1645224894922,0.00238199,2780.1,2779.9,3.5]
[1645224895190,0.00238199,2780.1,2780.0,0.89946]
[1645224895387,0.0055791,2780.7,2780.1,1.40293498]
[1645224895587,0.0055791,2781.1,2780.2,3.5]
[1645224895789,0.00952608,2780.7,2780.3,1.0]
[1645224895985,0.00952608,2780.7,2780.4,3.5]
[1645224896188,0.00952608,2780.7,2780.4,3.8]
[1645224896390,0.00952608,2780.7,2780.5,1.0]
[1645224896587,0.0055791,2781.4,2780.5,1.8993]
[1645224896786,0.0055791,2781.4,2780.6,3.5]
[1645224896988,0.0055791,2781.4,2780.5,2.1993]
[1645224897290,0.0055791,2781.4,2780.6,3.5]
[1645224897891,0.0055791,2781.4,2780.6,15.4092142]
[1645224898090,0.0196085,2781.6,2780.7,2.7982071]
[1645224898290,0.0140294,2781.6,2780.8,3.8]
[1645224898490,0.0140294,2781.6,2780.9,0.5]
[1645224898689,0.0140294,2781.6,2781.0,4.39903]
[1645224898943,0.0140294,2781.6,2781.1,0.8990493]
[1645224899129,0.94769726,2782.1,2781.2,3.5]
[1645224899428,0.00198326,2781.4,2781.2,3.5]
[1645224899628,0.00198326,2781.4,2780.9,3.8]
[1645224900231,0.04433703,2781.6,2780.9,3.8]
[1645224900432,0.0024522,2781.3,2780.9,3.55]
[1645224900630,0.0024522,2781.3,2780.9,3.5]
[1645224900835,0.04206334,2781.2,2780.9,3.5]
[1645224901034,0.04206334,2781.2,2780.8,2.6974]
[1645224901236,0.04149491,2781.1,2780.8,6.1974]
[1645224901435,1.15693668,2781.9,2780.6,3.5]
[1645224901633,0.00245222,2781.1,2780.6,3.5]
[1645224901836,0.00245222,2781.1,2780.7,1.0]
[1645224902036,0.00245222,2781.1,2780.6,3.5]
[1645224902233,0.00245222,2781.1,2780.4,3.5]
[1645224902436,0.00245222,2781.1,2780.4,5.29849]
[1645224902680,0.94769726,2782.1,2780.4,7.09698]
[1645224902882,0.00245227,2780.9,2780.4,7.09698]
[1645224903180,0.00245227,2780.9,2780.4,3.89698]
[1645224903380,0.00245227,2780.9,2780.4,2.09849]
[1645224903780,4.36978638,2782.1,2780.4,2.09849]
[1645224904082,0.00245228,2780.8,2780.5,3.5]
[1645224904380,0.00245228,2780.8,2780.4,2.09849]
[1645224904580,0.00245228,2780.8,2780.4,1.79849]
[1645224904984,0.89938,2781.5,2780.4,1.79849]
[1645224905181,0.89938,2781.5,2780.5,3.5]
[1645224905383,0.00245229,2780.7,2780.4,1.79849]
[1645224905581,0.00245229,2780.7,2780.3,2.78253]
[1645224905882,0.0098077,2781.2,2780.3,1.8833]
[1645224905883,5.0,2781.2,2780.3,1.8833]
[1645224906083,5.0,2781.2,2780.2,1.1371]
[1645224906281,5.0,2781.2,2780.1,0.00365498]
[1645224906721,5.0,2781.5,2780.1,0.00365498]
[1645224907121,0.89943,2781.4,2780.2,0.89943]
[1645224907419,0.3,2781.5,2780.2,0.89943]
[1645224907622,0.00197384,2781.3,2780.2,0.89943]
[1645224908519,1.0,2781.5,2780.2,5.2987901]
[1645224908922,0.00245187,2781.3,2780.6,0.00160011]
[1645224909718,1.0,2781.5,2780.4,0.89936]
[1645224909920,8.68937,2781.6,2780.4,0.89936]
[1645224910183,0.00245201,2781.3,2780.8,0.00159999]
[1645224910977,7.49,2781.6,2780.4,0.89936]
[1645224911378,0.00245208,2781.3,2780.8,0.00159998]
[1645224912180,7.49,2781.6,2780.4,0.89936]
[1645224912379,7.79,2781.6,2780.6,0.89928]
[1645224912581,0.00245208,2781.3,2780.8,0.00159998]
[1645224913482,7.79,2781.6,2780.1,0.00365498]
[1645224913681,0.00245208,2781.3,2780.8,0.00159998]
[1645224914521,13.64192208,2781.6,2780.1,0.00365498]
[1645224914723,5.0,2781.2,2780.1,0.00365498]
[1645224914925,5.0,2780.9,2780.8,0.00159998]
[1645224915327,6.3,2780.9,2780.8,9.998e-05]
[1645224915525,0.90056002,2780.7,2780.1,0.00365498]
[1645224915725,0.89989,2780.3,2780.1,0.00365498]
[1645224915927,0.8949,2780.2,2780.1,0.00365498]
[1645224916226,6.1949,2780.2,2780.1,0.00365498]
[1645224916625,7.1949,2780.2,2780.1,0.00365498]
[1645224916824,0.89998,2780.0,2778.7,3.5]
[1645224917029,0.89998,2779.7,2778.8,1.52834176]
[1645224917224,0.89998,2779.7,2778.9,1.52834176]
[1645224917425,0.89998,2779.7,2778.6,3.5]
[1645224917675,5.0,2779.4,2778.7,0.52831697]
[1645224917880,0.9003,2778.8,2778.3,3.5]
[1645224918073,0.9003,2778.8,2777.7,3.5]
[1645224918275,6.1763,2779.7,2777.8,0.9001063]
[1645224918474,7.4289271,2779.7,2777.9,3.5]
[1645224918675,2.4763,2779.7,2777.9,3.5]
[1645224918874,0.90019,2779.4,2777.9,3.5]
[1645224919476,0.3,2779.2,2777.9,3.5]
[1645224919679,0.90016,2779.1,2778.5,0.00160345]
[1645224919875,1.80045,2779.1,2778.5,0.00160345]
[1645224920278,1.2001609,2779.2,2778.5,0.00160345]
[1645224920279,0.3,2779.2,2778.5,0.00160345]
[1645224920677,0.3,2779.2,2777.9,3.5]
[1645224920877,0.3,2779.2,2777.8,0.90014]
[1645224920878,1.6,2779.5,2778.1,0.90009]
[1645224921079,1.6,2779.5,2778.7,0.00160334]
[1645224921276,2.5000827,2779.5,2778.7,0.00160334]
[1645224921526,0.90009,2779.4,2778.7,0.00160334]
[1645224921924,0.90009,2779.4,2777.9,5.30013]
[1645224922123,0.90009,2779.4,2778.9,0.00160322]
[1645224922325,1.80027,2779.4,2778.9,0.00160322]
[1645224922524,0.90023,2779.2,2778.9,0.00160322]
[1645224922723,3.0007555,2779.2,2778.9,0.00160322]
[1645224922926,4.0007555,2779.2,2778.9,0.00160322]
[1645224923127,3.1005255,2779.2,2777.8,3.5]
[1645224923325,3.1005255,2779.2,2778.9,0.00160322]
[1645224923636,1.8004598,2779.1,2778.9,0.00160322]
[1645224923925,0.3,2779.0,2778.9,0.00160322]
[1645224924124,5.3,2779.0,2778.9,0.00160322]
[1645224924323,5.3,2779.0,2777.7,4.70023]
[1645224924526,2.10056,2779.0,2778.8,0.00160328]
[1645224925375,0.90026,2778.9,2777.7,3.5]
[1645224925575,0.90026,2778.9,2777.7,0.3]
[1645224925780,0.90026,2778.9,2778.8,0.00160331]
[1645224926575,0.90026,2778.9,2777.7,3.5]
[1645224926776,0.90026,2778.9,2777.7,3.8]
[1645224927078,0.90026,2778.9,2778.7,0.00160334]
[1645224927479,1.2301,2779.3,2778.7,0.00160334]
[1645224927881,1.2301,2779.3,2777.9,3.5]
[1645224928079,1.2301,2779.3,2777.9,3.8]
[1645224928284,1.2301,2779.3,2778.9,0.00160325]
[1645224928936,1.0,2779.5,2778.9,0.00160325]
[1645224929128,1.0,2779.5,2778.3,3.5]
[1645224929129,1.3,2779.5,2778.3,3.5]
[1645224929327,1.3,2779.5,2779.0,0.00144287]
[1645224930134,2.9279,2779.6,2779.0,0.00144287]
[1645224930351,1.1505,2779.9,2778.7,0.89987]
[1645224930533,1.1505,2779.9,2778.8,3.5]
[1645224931534,1.4505,2779.9,2778.8,3.5]
[1645224932135,2.0504,2779.9,2778.8,3.5]
[1645224932433,2.0504,2779.9,2778.8,4.39988]
[1645224932881,2.0504,2779.9,2779.2,0.00161111]
[1645224933881,2.0504,2779.9,2778.8,4.39988]
[1645224934081,2.0504,2779.9,2779.4,0.00161099]
[1645224934982,2.0504,2779.9,2778.8,4.39988]
[1645224935382,2.0504,2779.9,2779.5,0.00161093]
[1645224936185,2.0504,2779.9,2778.8,4.39988]
[1645224936628,2.0504,2779.9,2779.6,0.0016109]
[1645224936629,2.3504,2779.9,2779.6,0.0016109]
[1645224936830,2.0504,2779.9,2779.6,0.0016109]
[1645224937229,0.8999,2779.9,2779.6,0.0016109]
[1645224937428,0.8999,2779.9,2778.9,3.5]
[1645224937632,0.8999,2779.9,2778.8,0.89988]
[1645224937830,1.1999,2779.9,2779.6,0.00161087]
[1645224938634,1.1999,2779.9,2778.9,3.5]
[1645224938834,1.1999,2779.9,2778.8,0.89988]
[1645224939031,1.1999,2779.9,2779.6,0.00161087]
[1645224939632,0.3,2779.9,2779.6,0.00161087]
[1645224939833,0.3,2780.0,2778.8,0.08611616]
[1645224940279,0.3,2780.0,2779.6,0.00161087]
[1645224940679,1.19985,2780.0,2779.6,0.00161087]
[1645224941080,1.19985,2780.0,2778.9,3.5]
[1645224941286,1.19985,2780.0,2779.7,0.00161084]
[1645224941779,0.89985,2780.0,2779.7,0.00161084]
[1645224941980,0.89985,2780.0,2779.7,0.00072818]
[1645224942380,0.89985,2780.0,2778.8,1.799674]
[1645224942779,1.19985,2780.0,2778.8,1.799674]
[1645224942979,1.19985,2780.0,2778.8,0.89986]
[1645224943280,4.69985,2780.0,2778.8,0.89986]
[1645224943484,6.80043,2779.6,2778.6,4.37882642]
[1645224943683,6.80043,2779.6,2778.1,2.44544441]
[1645224943684,5.0,2779.2,2778.1,2.44544441]
[1645224943941,5.0,2779.2,2778.0,3.0154]
[1645224943942,0.9002906,2779.1,2778.0,3.0154]
[1645224944425,0.9002906,2779.1,2777.9,7.49]
[1645224944426,0.90024,2778.9,2777.9,7.49]
[1645224944626,0.90024,2778.9,2778.0,1.52873706]
[1645224945025,0.90024,2778.9,2778.4,0.00160936]
[1645224945528,1.20024,2778.9,2778.4,0.00160936]
[1645224945728,0.90024,2778.9,2778.4,0.00160936]
[1645224945929,0.90024,2778.9,2778.0,2.44615253]
[1645224946127,0.90024,2778.9,2778.5,0.0016093]
[1645224947028,0.90024,2778.9,2778.0,1.52874768]
[1645224947329,0.90024,2778.9,2778.6,0.00160927]
[1645224947672,1.20024,2778.9,2778.6,0.00160927]
[1645224947872,0.90024,2778.9,2778.6,0.00160927]
[1645224948374,0.90024,2778.9,2778.0,2.44615253]
[1645224948578,0.90024,2778.9,2778.6,0.00160925]
[1645224949574,0.90024,2778.9,2778.0,1.52876736]
[1645224949774,0.90024,2778.9,2778.6,0.00160925]
[1645224950576,0.90024,2778.9,2778.1,1.52873873]
[1645224950775,0.90024,2778.9,2778.0,2.44615253]
[1645224950979,0.90024,2778.9,2778.6,0.00160925]
[1645224951836,0.90024,2778.9,2778.1,1.52873385]
[1645224952236,0.90024,2778.9,2778.6,0.00160925]
[1645224953037,0.90024,2778.9,2778.0,2.44615253]
[1645224953235,0.90024,2778.9,2778.1,1.52877026]
[1645224953438,0.90024,2778.9,2778.6,0.00160925]
[1645224954241,0.90024,2778.9,2778.1,1.52876355]
[1645224954634,0.90024,2778.9,2778.6,0.00160925]
[1645224955575,0.90024,2778.9,2778.1,1.52876355]
[1645224955776,0.90024,2778.9,2778.6,0.00160925]
[1645224956277,1.44291205,2778.9,2778.6,0.00160925]
[1645224956678,1.44291205,2778.9,2778.1,1.52876355]
[1645224956881,1.44291205,2778.9,2778.6,0.00160925]
[1645224957478,1.44291205,2778.9,2778.6,9.25e-06]
[1645224957881,1.44291205,2778.9,2777.6,3.1073]
[1645224957882,1.8008,2778.8,2778.0,1.52869518]
[1645224958080,1.8008,2778.8,2777.6,3.1073]
[1645224958081,0.90047,2778.6,2777.6,3.1073]
[1645224958281,0.90047,2778.6,2777.7,1.52883491]
[1645224958929,0.90046,2778.4,2777.7,1.52883491]
[1645224959123,0.9004,2778.3,2777.7,1.52883491]
[1645224959324,1.80093,2778.7,2777.7,5.02883491]
[1645224959626,0.3,2778.7,2777.8,1.52883491]
[1645224959824,0.84267205,2778.9,2777.8,1.52883491]
[1645224960022,0.54267205,2778.9,2777.8,1.52883491]
[1645224960622,0.90028,2778.8,2778.2,0.00160548]
[1645224961025,1.20028,2778.8,2778.2,0.00160548]
[1645224961228,0.3,2778.8,2778.2,0.00160548]
[1645224961427,0.54267205,2778.9,2777.8,1.52883491]
[1645224961428,0.54267205,2778.9,2777.9,3.5]
[1645224961625,0.54267205,2778.9,2778.0,1.52883491]
[1645224961824,0.54267205,2778.9,2778.4,0.00160539]
[1645224962424,1.1608,2779.1,2778.4,0.00160539]
[1645224962690,1.8348,2779.2,2778.0,1.52883491]
[1645224962892,1.5348,2779.2,2778.5,0.00160533]
[1645224963690,2.43491,2779.2,2778.5,0.00160533]
[1645224963890,2.43491,2779.2,2778.3,1.52883491]
[1645224964089,2.43491,2779.2,2778.5,0.00160533]
[1645224965092,2.43491,2779.2,2778.3,1.52883491]
[1645224965293,2.43491,2779.2,2778.5,0.00160533]
[1645224966295,2.43491,2779.2,2778.3,1.52883491]
[1645224966538,2.43491,2779.2,2778.5,0.00160533]
[1645224967539,2.43491,2779.2,2778.0,3.5]
[1645224967735,2.73491,2779.2,2778.5,0.00160533]
[1645224968538,2.43491,2779.2,2778.5,0.00160533]
[1645224968736,2.43491,2779.2,2778.1,0.3]
[1645224968937,2.43491,2779.2,2778.5,0.00160533]
[1645224969139,4.23533,2779.2,2778.5,0.00160533]
[1645224969337,0.90021,2779.0,2778.5,0.00160533]
[1645224969942,0.90021,2779.0,2778.1,1.52872496]
[1645224970178,0.90021,2779.0,2778.5,0.00160533]
[1645224971079,0.90021,2779.0,2778.4,1.52872496]
[1645224971276,0.90021,2779.0,2778.0,1.0]
[1645224971480,0.90021,2779.0,2778.5,0.00160533]
[1645224972280,0.90021,2779.0,2778.2,1.52872668]
[1645224972482,0.90021,2779.0,2778.5,0.00160533]
[1645224972686,1.36194947,2779.5,2778.5,0.00160533]
[1645224972881,7.31115617,2780.1,2778.5,3.50160533]
[1645224972882,1.26194947,2780.0,2778.5,3.50160533]
[1645224973081,1.26194947,2780.0,2778.6,1.52872668]
[1645224973281,1.26194947,2780.0,2778.7,3.5]
[1645224973482,1.26194947,2780.0,2778.8,1.52872668]
[1645224973681,1.2213,2780.1,2778.8,1.52872668]
[1645224973682,1.2213,2780.1,2778.9,3.5]
[1645224973938,1.2213,2780.1,2779.0,1.52872668]
[1645224974928,1.2213,2780.1,2779.1,3.5]
[1645224975127,2.07001,2780.2,2779.1,3.5]
[1645224975929,2.07001,2780.2,2779.1,0.8997753]
[1645224976131,2.07001,2780.2,2779.1,4.3997753]
[1645224976331,1.57001,2780.2,2779.1,4.3997753]
[1645224976732,1.57001,2780.2,2779.0,3.5]
[1645224976934,5.59201912,2780.2,2778.8,3.5]
[1645224977132,0.90002,2779.8,2778.9,1.52846648]
[1645224977332,0.90002,2779.8,2778.8,3.5]
[1645224977535,0.90002,2779.8,2778.9,1.52846927]
[1645224977781,1.80005,2779.8,2778.8,3.5]
[1645224977981,0.90003,2779.8,2778.8,3.5]
[1645224978178,0.90003,2779.5,2778.6,4.6504]
[1645224978377,0.90003,2779.5,2778.7,1.52857378]
[1645224978579,0.90003,2779.5,2778.5,5.10302473]
[1645224978975,0.90017,2779.4,2778.5,5.10302473]
[1645224979377,0.90016,2779.1,2778.5,5.10302473]
[1645224979678,0.90016,2779.1,2778.5,0.00134738]
[1645224980480,0.90009,2779.3,2778.5,0.00134738]
[1645224980678,3.40364,2779.6,2778.5,3.5]
[1645224980880,1.6035,2779.6,2778.6,1.52869488]
[1645224981278,1.6035,2779.6,2778.7,1.52869488]
[1645224981522,1.6035,2779.6,2778.5,0.00134738]
[1645224981725,1.6035,2779.6,2778.5,0.90132188]
[1645224981926,1.6035,2779.6,2778.6,1.52858909]
[1645224982223,1.6035,2779.6,2778.7,3.5]
[1645224982423,1.6035,2779.6,2778.8,1.52858909]
[1645224982827,1.6035,2779.6,2778.5,0.00134738]
[1645224983030,1.6035,2779.6,2778.4,1.52854499]
[1645224983224,1.6035,2779.6,2778.8,0.8999026]
[1645224983427,1.6035,2779.6,2778.6,0.89993]
[1645224983727,1.6035,2779.6,2778.7,1.52857767]
[1645224983927,2.97340288,2779.6,2778.5,3.8013608]
[1645224984225,2.97340288,2779.6,2778.6,1.52861796]
[1645224985186,2.97340288,2779.6,2778.7,3.5]
[1645224985390,1.6035,2779.6,2778.8,1.52861796]
[1645224985986,1.6035,2779.6,2778.9,1.52861796]
[1645224986185,1.6035,2779.6,2778.5,3.8013608]
[1645224986386,1.6035,2779.6,2778.6,2.4283825]
[1645224986589,1.6035,2779.6,2778.7,1.5285125]
[1645224986787,1.6035,2779.6,2778.6,2.4284425]
[1645224986989,1.6035,2779.6,2778.7,5.0285125]
[1645224987186,1.6035,2779.6,2778.8,1.5285125]
[1645224987587,1.6035,2779.6,2778.9,1.5285125]
[1645224987788,1.6035,2779.6,2778.6,0.89993]
[1645224987990,1.6035,2779.6,2778.7,1.52853868]
[1645224988190,1.6035,2779.6,2778.8,0.899888]
[1645224988390,1.6035,2779.6,2778.9,1.52853868]
[1645224988586,1.6035,2779.6,2778.7,3.5]
[1645224988789,1.6035,2779.6,2778.8,1.52853595]
[1645224989430,1.6035,2779.6,2778.9,1.52853595]
[1645224989632,1.6035,2779.6,2778.5,4.70129885]
[1645224989833,1.6035,2779.6,2778.6,2.52854349]
[1645224990035,1.6035,2779.6,2778.8,0.8998917]
[1645224990231,1.6035,2779.6,2778.9,1.52854349]
[1645224990839,1.6035,2779.6,2778.9,5.02854349]
[1645224991033,1.6035,2779.6,2778.8,0.8998917]
[1645224991232,1.6035,2779.6,2778.9,1.5284965]
[1645224991435,1.6035,2779.6,2778.8,0.8998917]
[1645224991835,2.156231,2779.6,2778.7,3.5]
[1645224992033,2.156231,2779.6,2778.8,1.52854299]
[1645224995782,2.156231,2779.6,2778.8,2.52854299]
[1645224995987,2.156231,2779.6,2778.9,1.52854299]
[1645224996186,2.156231,2779.6,2778.5,0.00135909]
[1645224996187,0.90002,2779.5,2778.5,0.00135909]
[1645224996437,0.90002,2779.5,2778.5,2.52861829]